bitfinex/quotes_BTCUSD_20251010
["timestamp","ask_amount","ask_price","bid_price","bid_amount"]
[1760139953912,0.18801979,114630.0,114620.0,0.38898375]
[1760139954263,0.08596757,114630.0,114620.0,0.34015054]
[1760139954462,0.0815049,114630.0,114620.0,0.04898375]
[1760139954876,0.04093056,114630.0,114620.0,0.00015054]
[1760139955071,0.03648645,114630.0,114620.0,0.00015054]
[1760139955478,0.18828505,114630.0,114620.0,0.04898375]
[1760139955691,0.17452006,114600.0,114590.0,0.04613]
[1760139955920,0.17452006,114600.0,114590.0,0.13066644]
[1760139956097,0.17007837,114600.0,114590.0,0.13066898]
[1760139956315,0.16558639,114600.0,114590.0,0.16096572]
[1760139956566,0.17279131,114610.0,114600.0,0.34]
[1760139956765,0.17452006,114600.0,114590.0,0.09546572]
[1760139956990,0.17002041,114600.0,114590.0,0.09546572]
[1760139957210,0.16548623,114600.0,114590.0,0.00050251]
[1760139957389,0.21142623,114600.0,114590.0,0.04933572]
[1760139957589,0.20679763,114600.0,114590.0,0.04933572]
[1760139957823,0.20234296,114600.0,114590.0,0.00050251]
[1760139957995,0.20234296,114600.0,114560.0,0.02316274]
[1760139957996,0.1745624,114580.0,114560.0,0.02316274]
[1760139958195,0.33831647,114570.0,114560.0,0.01867831]
[1760139958370,0.17459624,114550.0,114540.0,0.09536321]
[1760139958572,0.17017986,114550.0,114540.0,0.0917978]
[1760139958751,0.30593696,114550.0,114540.0,0.04883321]
[1760139958957,0.17461148,114540.0,114530.0,0.0004]
[1760139959196,0.16999633,114540.0,114530.0,0.02336601]
[1760139959369,0.20100633,114540.0,114530.0,0.02336601]
[1760139959571,0.16999633,114540.0,114530.0,0.02336601]
[1760139959780,0.14358533,114540.0,114530.0,0.22988601]
[1760139960175,0.14121872,114550.0,114530.0,0.22988601]
[1760139960398,0.14121872,114550.0,114540.0,0.16423577]
[1760139960602,0.14121872,114550.0,114540.0,0.22973577]
[1760139960928,0.14121872,114550.0,114540.0,0.13484577]
[1760139960929,0.1282816,114550.0,114540.0,0.13484577]
[1760139961084,0.16284078,114550.0,114540.0,0.22973577]
[1760139961287,0.14056911,114550.0,114540.0,0.22973577]
[1760139961592,0.13094481,114550.0,114540.0,0.22973577]
[1760139961768,0.12601161,114550.0,114540.0,0.22973577]
[1760139961968,0.18331005,114560.0,114550.0,0.02321577]
[1760139962174,0.17459624,114550.0,114540.0,0.22973577]
[1760139962377,0.16961298,114550.0,114540.0,0.22973577]
[1760139962590,0.16961298,114550.0,114530.0,0.13378079]
[1760139962591,0.17461148,114540.0,114530.0,0.00015024]
[1760139962781,0.16976959,114540.0,114530.0,0.02336601]
[1760139962935,0.20363298,114550.0,114530.0,0.02336601]
[1760139963138,0.20363298,114550.0,114540.0,0.02321577]
[1760139963441,0.19784788,114550.0,114540.0,0.02321577]
[1760139963642,0.19271276,114550.0,114540.0,0.02321577]
[1760139964003,0.18756961,114550.0,114540.0,0.02321577]
[1760139964194,0.26955246,114550.0,114540.0,0.0151095]
[1760139964644,0.26438073,114550.0,114540.0,0.0151095]
[1760139964848,0.25932093,114550.0,114540.0,0.0151095]
[1760139965261,0.25417733,114550.0,114540.0,0.0151095]
[1760139965410,0.24912202,114550.0,114540.0,0.0151095]
[1760139965611,0.24438285,114550.0,114540.0,0.0151095]
[1760139966411,0.17461148,114540.0,114530.0,0.02950282]
[1760139966612,0.22380247,114560.0,114530.0,0.02950282]
[1760139966613,0.17817247,114560.0,114530.0,0.18989282]
[1760139966819,0.17817247,114560.0,114550.0,0.04613]
[1760139967020,0.17324294,114560.0,114550.0,0.45163]
[1760139967262,0.00872905,114560.0,114550.0,0.45163]
[1760139967447,0.00872905,114560.0,114550.0,0.54652]
[1760139968103,0.2099042,114570.0,114560.0,0.34]
[1760139968451,0.29740475,114570.0,114560.0,0.34]
[1760139968661,0.29740475,114570.0,114560.0,0.29734858]
[1760139968871,0.27079459,114570.0,114560.0,0.29734858]
[1760139969113,0.29795459,114570.0,114560.0,0.29734858]
[1760139969754,0.35192459,114570.0,114560.0,0.29734858]
[1760139970377,0.29795459,114570.0,114560.0,0.29734858]
[1760139970595,0.29795459,114570.0,114560.0,0.25383513]
[1760139971195,0.174581,114560.0,114550.0,0.04729]
[1760139971367,0.27079459,114570.0,114550.0,0.14727]
[1760139971571,0.18329404,114570.0,114560.0,0.04729]
[1760139971844,0.1983817,114580.0,114560.0,0.04729]
[1760139971845,0.2032779,114600.0,114560.0,0.32197997]
[1760139972019,0.17455111,114580.0,114560.0,0.10895]
[1760139972351,0.17456576,114570.0,114560.0,0.06856999]
[1760139972484,0.30732166,114580.0,114560.0,0.06856999]
[1760139972485,0.04527,114580.0,114560.0,0.06856999]
[1760139972690,0.19940677,114590.0,114580.0,0.34]
[1760139972889,0.17455053,114580.0,114570.0,0.04729]
[1760139973594,0.17455053,114580.0,114560.0,0.34690999]
[1760139973595,0.17456576,114570.0,114560.0,0.34690999]
[1760139973789,0.174697,114570.0,114560.0,0.34690999]
[1760139974414,0.174697,114570.0,114560.0,0.00690999]
[1760139974619,0.1744694,114560.0,114550.0,0.04729]
[1760139974820,0.17464198,114520.0,114510.0,0.07491474]
[1760139975017,0.26214253,114520.0,114510.0,0.02668197]
[1760139975246,0.17465723,114510.0,114500.0,0.05660428]
[1760139975462,0.17467248,114500.0,114490.0,0.07075608]
[1760139975663,0.21992723,114510.0,114500.0,0.00455866]
[1760139975844,0.44762778,114510.0,114500.0,0.00455866]
[1760139976049,0.44775891,114510.0,114500.0,0.00455866]
[1760139976957,0.174703,114480.0,114470.0,0.00861971]
[1760139977523,0.17468797,114490.0,114470.0,0.01317837]
[1760139977721,0.26218852,114490.0,114470.0,0.01317837]
[1760139978057,0.22005836,114510.0,114490.0,0.34]
[1760139978058,0.04540113,114510.0,114490.0,0.34]
[1760139978259,0.04540113,114510.0,114490.0,0.37252]
[1760139978646,0.04540113,114510.0,114500.0,0.53518]
[1760139978647,0.00013113,114510.0,114500.0,0.53518]
[1760139978850,0.00013113,114510.0,114500.0,0.49218496]
[1760139979375,0.00013113,114510.0,114500.0,0.37354]
[1760139979599,0.00113113,114510.0,114500.0,0.37354]
[1760139980198,0.15351107,114510.0,114500.0,0.34]
[1760139980677,0.04527,114520.0,114510.0,0.34]
[1760139980886,0.29046055,114520.0,114490.0,0.37252]
[1760139981105,0.22150846,114530.0,114490.0,0.37252]
[1760139981106,0.000846,114510.0,114490.0,0.46370547]
[1760139981297,0.000846,114510.0,114500.0,0.06166]
[1760139981471,0.000846,114510.0,114490.0,0.37620492]
[1760139982672,0.000846,114510.0,114500.0,0.06166]
[1760139982876,0.000846,114510.0,114500.0,0.01874164]
[1760139983077,0.17550971,114510.0,114490.0,0.00015072]
[1760139983281,0.31309971,114510.0,114490.0,0.00015072]
[1760139983458,0.17467248,114500.0,114490.0,0.00015072]
[1760139983661,0.21994248,114500.0,114490.0,0.00015072]
[1760139983862,0.04527,114500.0,114490.0,0.00015072]
[1760139984327,0.02298836,114500.0,114490.0,0.00015072]
[1760139984969,0.17467248,114500.0,114490.0,0.00015072]
[1760139985173,0.19814055,114500.0,114490.0,0.00015072]
[1760139985392,0.19814055,114500.0,114460.0,0.02581]
[1760139985393,0.47386665,114500.0,114460.0,0.02110473]
[1760139985569,0.38154665,114500.0,114460.0,0.13020797]
[1760139985757,0.38154665,114500.0,114470.0,0.00455866]
[1760139985958,0.31617665,114500.0,114470.0,0.02565866]
[1760139986311,0.2286761,114500.0,114470.0,0.02565866]
[1760139986522,0.2186761,114500.0,114480.0,0.0147]
[1760139987339,0.2186761,114500.0,114460.0,0.10583468]
[1760139987662,0.2186761,114500.0,114470.0,0.00455866]
[1760139988215,0.1747159,114510.0,114480.0,0.01745]
[1760139988416,0.05400362,114500.0,114480.0,0.01745]
[1760139988736,0.02298834,114500.0,114480.0,0.01745]
[1760139988913,0.11530834,114500.0,114480.0,0.01745]
[1760139989116,0.28998232,114500.0,114480.0,0.01745]
[1760139989319,0.29871594,114500.0,114470.0,0.34101268]
[1760139989519,0.29871594,114500.0,114480.0,0.02127]
[1760139990343,0.20639657,114500.0,114480.0,0.02127]
[1760139990577,0.18411491,114500.0,114480.0,0.02127]
[1760139990775,0.27643491,114500.0,114480.0,0.02127]
[1760139990977,0.27643491,114500.0,114470.0,0.34557134]
[1760139990978,0.174703,114480.0,114470.0,0.00455866]
[1760139991185,0.22870815,114480.0,114450.0,0.00196042]
[1760139991462,0.22870815,114480.0,114470.0,0.00455866]
[1760139991664,0.18343815,114480.0,114470.0,0.01790866]
[1760139991868,0.174703,114480.0,114470.0,0.01790866]
[1760139993356,0.15243675,114480.0,114470.0,0.01790866]
[1760139993562,0.16345129,114480.0,114470.0,0.01790866]
[1760139993987,0.19456552,114480.0,114470.0,0.00455866]
[1760139994468,0.18428818,114480.0,114470.0,0.00455866]
[1760139994685,0.08466303,114480.0,114470.0,0.00455866]
[1760139994888,0.08466303,114480.0,114470.0,0.01790866]
[1760139995048,0.285343,114480.0,114470.0,0.00455866]
[1760139995247,0.18411491,114500.0,114470.0,0.18527921]
[1760139995472,0.18411491,114500.0,114470.0,0.15455921]
[1760139995473,0.17468865,114490.0,114470.0,0.15455921]
[1760139995675,0.17468865,114490.0,114470.0,0.01790866]
[1760139995676,0.174703,114480.0,114470.0,0.01790866]
[1760139995818,0.14049418,114480.0,114470.0,0.01790866]
[1760139996364,0.34345418,114480.0,114470.0,0.00455866]
[1760139996540,0.39225447,114480.0,114470.0,0.00455866]
[1760139996726,0.35802573,114480.0,114470.0,0.00402973]
[1760139996938,0.17472535,114470.0,114450.0,0.00013113]
[1760139997170,0.20372353,114460.0,114450.0,0.00013113]
[1760139997488,0.35800781,114460.0,114450.0,0.00013113]
[1760139998891,0.27383055,114460.0,114450.0,0.00013113]
[1760139999085,0.44856408,114460.0,114450.0,0.00013113]
[1760139999230,0.41435912,114460.0,114450.0,0.00013113]
[1760139999455,0.32371771,114460.0,114450.0,0.00013113]
[1760139999657,0.28951362,114460.0,114450.0,0.00013113]
[1760140000090,0.25530954,114460.0,114450.0,0.00013113]
[1760140000293,0.22110545,114460.0,114450.0,0.00013113]
[1760140000493,0.22210545,114460.0,114450.0,0.00013113]
[1760140000689,0.18790136,114460.0,114450.0,0.00013113]
[1760140001291,0.24119782,114460.0,114450.0,0.00013113]
[1760140001490,0.20699373,114460.0,114450.0,0.00013113]
[1760140001692,0.17278964,114460.0,114450.0,0.00013113]
[1760140002107,0.13858555,114460.0,114450.0,0.00013113]
[1760140002318,0.08850055,114460.0,114450.0,0.00013113]
[1760140002523,0.26323408,114460.0,114450.0,0.00013113]
[1760140002723,0.09173418,114460.0,114450.0,0.00013113]
[1760140003519,0.05840424,114460.0,114450.0,0.00013113]
[1760140004118,0.18952364,114460.0,114450.0,0.00013113]
[1760140004537,0.24285262,114460.0,114450.0,0.00013113]
[1760140004738,0.2376157,114460.0,114450.0,0.00013113]
[1760140005680,0.2034174,114460.0,114450.0,0.00013113]
[1760140005899,0.16924482,114460.0,114450.0,0.00013113]
[1760140006111,0.13507306,114460.0,114450.0,0.00013113]
[1760140006491,0.26223408,114460.0,114450.0,0.00013113]
[1760140006893,0.22809648,114460.0,114450.0,0.00013113]
[1760140007304,0.19447089,114460.0,114450.0,0.00013113]
[1760140007460,0.21362936,114460.0,114450.0,0.00013113]
[1760140007774,0.17945673,114460.0,114450.0,0.00013113]
[1760140008376,0.14528588,114460.0,114450.0,0.00013113]
[1760140008737,0.26206266,114460.0,114450.0,0.00013113]
[1760140008949,0.22789352,114460.0,114450.0,0.00013113]
[1760140009074,0.19372438,114460.0,114450.0,0.00013113]
[1760140009277,0.17473353,114460.0,114450.0,0.00013113]
[1760140009523,0.13541807,114470.0,114450.0,0.00013113]
[1760140009740,0.05538147,114460.0,114450.0,0.00013113]
[1760140009988,0.19684668,114470.0,114450.0,0.00013113]
[1760140010200,0.26223408,114460.0,114450.0,0.00013113]
[1760140010802,0.22809941,114460.0,114450.0,0.00013113]
[1760140011401,0.19393027,114460.0,114450.0,0.00013113]
[1760140011646,0.07226058,114460.0,114450.0,0.00013113]
[1760140011895,0.03809144,114460.0,114450.0,0.00013113]
[1760140012202,0.09103562,114470.0,114450.0,0.50312113]
[1760140012399,0.17435904,114460.0,114450.0,0.45105113]
[1760140012557,0.17535904,114460.0,114450.0,0.47607023]
[1760140013060,0.14119236,114460.0,114450.0,0.47607023]
[1760140013252,0.10602671,114460.0,114450.0,0.41151023]
[1760140013481,0.09103562,114470.0,114450.0,0.34013113]
[1760140013634,0.14056876,114460.0,114450.0,0.38649113]
[1760140013844,0.11761295,114460.0,114450.0,0.34013113]
[1760140014168,0.08344526,114460.0,114450.0,0.34013113]
[1760140014300,0.12157033,114480.0,114450.0,0.63698168]
[1760140014301,0.11639899,114480.0,114450.0,0.63698168]
[1760140014517,0.17472434,114470.0,114460.0,0.47386055]
[1760140014722,0.17472434,114470.0,114460.0,0.42750055]
[1760140014937,0.10643579,114470.0,114460.0,0.42750055]
[1760140015140,0.10643579,114470.0,114460.0,0.34]
[1760140015583,0.10643579,114470.0,114450.0,0.00013113]
[1760140015584,0.17473353,114460.0,114450.0,0.00013113]
[1760140019344,0.26223408,114460.0,114450.0,0.00013113]
[1760140019559,0.2400258,114460.0,114450.0,0.00013113]
[1760140019984,0.2410258,114460.0,114450.0,0.00013113]
[1760140020402,0.2400258,114460.0,114450.0,0.00013113]
[1760140020608,0.2410258,114460.0,114450.0,0.00013113]
[1760140020822,0.26602579,114460.0,114450.0,0.00013113]
[1760140021040,0.36602578,114460.0,114450.0,0.00013113]
[1760140021247,0.2420258,114460.0,114450.0,0.00013113]
[1760140021456,0.34202579,114460.0,114450.0,0.00013113]
[1760140021663,0.2420258,114460.0,114450.0,0.00013113]
[1760140021872,0.2410258,114460.0,114450.0,0.00013113]
[1760140022029,0.3542158,114460.0,114450.0,0.00013113]
[1760140022230,0.3552158,114460.0,114450.0,0.00013113]
[1760140022831,0.3330087,114460.0,114450.0,0.00013113]
[1760140023235,0.17480989,114410.0,114400.0,0.0025]
[1760140023436,0.17480989,114410.0,114380.0,0.5]
[1760140023437,0.17482517,114400.0,114380.0,0.5]
[1760140023772,0.32563045,114390.0,114380.0,0.50015073]
[1760140023971,0.15079,114390.0,114380.0,0.50015073]
[1760140024182,0.32563045,114390.0,114380.0,0.4653072]
[1760140024390,0.06013,114390.0,114380.0,0.4653072]
[1760140024895,0.28030045,114390.0,114380.0,0.4653072]
[1760140025029,0.25807976,114390.0,114380.0,0.4653072]
[1760140025223,0.25807976,114390.0,114380.0,0.8053072]
[1760140025502,0.34558031,114390.0,114380.0,0.8053072]
[1760140025710,0.34558031,114390.0,114380.0,0.4653072]
[1760140026832,0.32335962,114390.0,114380.0,0.8053072]
[1760140027783,0.34835961,114390.0,114380.0,0.4653072]
[1760140027974,0.4483596,114390.0,114380.0,0.4653072]
[1760140028208,0.4483596,114390.0,114380.0,0.03309704]
[1760140028374,0.4483596,114390.0,114310.0,0.04636]
[1760140028375,0.15269985,114330.0,114310.0,0.04636]
[1760140028578,0.02863,114320.0,114310.0,0.08750055]
[1760140028783,0.02863,114320.0,114310.0,0.09205921]
[1760140028981,0.02863,114320.0,114310.0,0.13706921]
[1760140029166,0.04507039,114330.0,114310.0,0.13674921]
[1760140029367,0.00015039,114330.0,114320.0,0.06555]
[1760140029581,0.00015039,114330.0,114320.0,0.04501]
[1760140029779,0.05080039,114330.0,114310.0,0.00455866]
[1760140029984,0.05080039,114330.0,114310.0,0.00555866]
[1760140029985,0.00589,114320.0,114310.0,0.00555866]
[1760140030180,0.00589,114320.0,114310.0,0.00455866]
[1760140030181,0.18094751,114320.0,114310.0,0.00455866]
[1760140030416,0.26844806,114320.0,114310.0,0.00455866]
[1760140030621,0.24621377,114320.0,114310.0,0.00455866]
[1760140030817,0.27121376,114320.0,114310.0,0.00555866]
[1760140031032,0.24621377,114320.0,114310.0,0.00555866]
[1760140031243,0.24621377,114320.0,114310.0,0.00455866]
[1760140031452,0.27121376,114320.0,114310.0,0.00455866]
[1760140031673,0.37121375,114320.0,114310.0,0.00455866]
[1760140032247,0.34998286,114320.0,114310.0,0.00455866]
[1760140032656,0.35098286,114320.0,114310.0,0.00455866]
[1760140033461,0.2999628,114310.0,114300.0,0.0025]
[1760140033655,0.41609335,114310.0,114300.0,0.0025]
[1760140033874,0.41609335,114310.0,114300.0,0.00705866]
[1760140033875,0.29389408,114310.0,114300.0,0.00705866]
[1760140034082,0.29109337,114310.0,114300.0,0.00705866]
[1760140034597,0.0087489,114300.0,114270.0,0.01136046]
[1760140034758,0.02574,114290.0,114270.0,0.48387101]
[1760140034955,0.0447,114300.0,114290.0,0.01136046]
[1760140035157,0.001,114310.0,114300.0,0.01136046]
[1760140035368,0.001,114310.0,114300.0,0.43886101]
[1760140035869,0.001,114310.0,114300.0,0.54992482]
[1760140036095,0.001,114310.0,114300.0,0.64712482]
[1760140036461,0.02516,114360.0,114330.0,0.01136046]
[1760140036664,0.02592,114370.0,114350.0,0.46192046]
[1760140036879,0.02632,114390.0,114380.0,0.01036046]
[1760140037080,0.02613,114410.0,114400.0,0.01036046]
[1760140037484,0.20926543,114420.0,114400.0,0.01036046]
[1760140037750,0.04326,114440.0,114410.0,0.43686101]
[1760140037971,0.01332288,114460.0,114440.0,0.00936046]
[1760140038185,0.17477934,114430.0,114420.0,0.00936046]
[1760140038410,0.17482067,114410.0,114380.0,0.00936046]
[1760140038614,0.27106171,114410.0,114380.0,0.00936046]
[1760140038820,0.21366592,114400.0,114380.0,0.00936046]
[1760140039444,0.17484045,114390.0,114380.0,0.00936046]
[1760140039651,0.17643124,114390.0,114370.0,0.00936046]
[1760140039903,0.17484124,114390.0,114370.0,0.00936046]
[1760140040105,0.00015053,114390.0,114380.0,0.001]
[1760140040307,0.17499098,114390.0,114380.0,0.001]
[1760140040691,0.17658098,114390.0,114380.0,0.001]
[1760140040899,0.26408153,114390.0,114380.0,0.001]
[1760140041266,0.26408153,114390.0,114330.0,0.00936046]
[1760140041267,0.17488632,114360.0,114330.0,0.00936046]
[1760140041469,0.03771,114340.0,114330.0,0.00936046]
[1760140041845,0.03929,114350.0,114330.0,0.00936046]
[1760140041995,0.22251646,114370.0,114350.0,0.00936046]
[1760140042195,0.17488632,114360.0,114350.0,0.00936046]
[1760140042399,0.17488632,114360.0,114340.0,0.00936046]
[1760140042600,0.00015048,114360.0,114340.0,0.00936046]
[1760140042784,0.00015048,114360.0,114350.0,0.00936046]
[1760140042990,0.1750368,114360.0,114350.0,0.00936046]
[1760140043198,0.1758168,114360.0,114340.0,0.34936046]
[1760140043632,0.00078,114350.0,114340.0,0.00936046]
[1760140043839,0.1750368,114360.0,114340.0,0.00936046]
[1760140044036,0.1758168,114360.0,114340.0,0.00936046]
[1760140044437,0.17490161,114350.0,114340.0,0.00936046]
[1760140044851,0.1758168,114360.0,114340.0,0.00936046]
[1760140045204,0.17490161,114350.0,114340.0,0.00936046]
[1760140045601,0.17490161,114350.0,114340.0,0.01036046]
[1760140045801,0.17470161,114350.0,114340.0,0.00936046]
[1760140046222,0.17548161,114350.0,114340.0,0.001]
[1760140046430,0.17493221,114330.0,114320.0,0.00936046]
[1760140046638,0.21264221,114330.0,114310.0,0.00936046]
[1760140046839,0.17494751,114320.0,114310.0,0.00936046]
[1760140047503,0.18369488,114320.0,114290.0,0.38208187]
[1760140047645,0.00874737,114320.0,114300.0,0.08750055]
[1760140047868,0.22138882,114330.0,114300.0,0.08750055]
[1760140048034,0.17509818,114320.0,114300.0,0.08750055]
[1760140048589,0.00015039,114320.0,114300.0,0.08750055]
[1760140048787,0.1838455,114320.0,114290.0,0.04501]
[1760140049016,0.17496374,114310.0,114290.0,0.13251055]
[1760140049173,0.17496374,114310.0,114290.0,0.08750055]
[1760140049492,0.1838455,114320.0,114300.0,0.001]
[1760140049642,0.17496282,114310.0,114300.0,0.001]
[1760140049866,0.17496282,114310.0,114300.0,0.341]
[1760140050559,0.17901282,114310.0,114300.0,0.34033308]
[1760140050769,0.1750048,114290.0,114270.0,0.00455866]
[1760140051001,0.17903031,114300.0,114290.0,0.001]
[1760140051211,0.17498031,114300.0,114280.0,0.08750055]
[1760140051447,0.21353031,114300.0,114280.0,0.08750055]
[1760140051595,0.21353031,114300.0,114280.0,0.42750055]
[1760140051797,0.21353961,114300.0,114280.0,0.34]
[1760140052000,0.25525961,114300.0,114280.0,0.34]
[1760140052202,0.17499343,114290.0,114280.0,0.34]
[1760140052582,0.18371096,114310.0,114280.0,0.34]
[1760140052583,0.03817,114310.0,114280.0,0.22971055]
[1760140052787,0.04691814,114310.0,114280.0,0.1518146]
[1760140053150,0.03817,114310.0,114280.0,0.22670224]
[1760140053568,0.2131358,114310.0,114290.0,0.04501]
[1760140053772,0.03817,114310.0,114290.0,0.04501]
[1760140053974,0.21313378,114310.0,114300.0,0.34]
[1760140054318,0.03817,114310.0,114300.0,0.34]
[1760140054521,0.21313282,114310.0,114300.0,0.34]
[1760140055154,0.22188096,114310.0,114280.0,0.12950224]
[1760140055546,0.22188096,114310.0,114280.0,0.22670224]
[1760140055774,0.22188096,114310.0,114280.0,0.12950224]
[1760140055977,0.00015039,114320.0,114300.0,0.45056]
[1760140056204,0.00015039,114320.0,114310.0,0.56971055]
[1760140056511,0.00015039,114320.0,114310.0,0.53806055]
[1760140056922,0.00015039,114320.0,114310.0,0.47251055]
[1760140057123,0.2133179,114320.0,114310.0,0.36832227]
[1760140057323,0.2133179,114320.0,114310.0,0.34]
[1760140057580,0.2133179,114320.0,114310.0,0.36832227]
[1760140057779,0.2133179,114320.0,114310.0,0.34]
[1760140058118,0.2129479,114320.0,114310.0,0.36932227]
[1760140058324,0.03762039,114320.0,114310.0,0.339797]
[1760140058733,0.00015039,114320.0,114310.0,0.339797]
[1760140058929,0.00015039,114320.0,114310.0,0.448927]
[1760140059433,0.00015039,114320.0,114310.0,0.542557]
[1760140059638,0.00015039,114320.0,114310.0,0.5687008]
[1760140059840,0.00015039,114320.0,114310.0,0.65620135]
[1760140060046,0.02186875,114340.0,114310.0,0.65620135]
[1760140060246,0.19678612,114340.0,114320.0,0.38501]
[1760140060449,0.19678612,114340.0,114320.0,0.34]
[1760140060748,0.17493221,114330.0,114320.0,0.34]
[1760140061754,0.17493221,114330.0,114310.0,0.00050381]
[1760140061755,0.17494751,114320.0,114310.0,0.00050381]
[1760140061973,0.21205751,114320.0,114310.0,0.00050381]
[1760140062136,0.21316751,114320.0,114310.0,0.00050381]
[1760140063417,0.20155488,114320.0,114290.0,0.02810626]
[1760140063621,0.02660737,114320.0,114290.0,0.1157572]
[1760140063821,0.2019251,114320.0,114290.0,0.08765094]
[1760140064355,0.17496308,114310.0,114290.0,0.08765094]
[1760140064557,0.17496308,114310.0,114290.0,0.00015039]
[1760140064558,0.00111,114300.0,114290.0,0.00015039]
[1760140064759,0.17659308,114310.0,114290.0,0.00015039]
[1760140064879,0.17608812,114300.0,114290.0,0.00015039]
[1760140065089,0.17659308,114310.0,114290.0,0.00015039]
[1760140065090,0.00163,114310.0,114290.0,0.00015039]
[1760140065299,0.17659365,114310.0,114290.0,0.00015039]
[1760140065500,0.17608812,114300.0,114290.0,0.00015039]
[1760140066310,0.17771812,114300.0,114290.0,0.00015039]
[1760140066499,0.17771812,114300.0,114290.0,0.00115039]
[1760140066884,0.15987289,114310.0,114290.0,0.00115039]
[1760140067086,0.20044537,114320.0,114290.0,0.00115039]
[1760140067287,0.27794592,114320.0,114290.0,0.00115039]
[1760140067447,0.17496402,114310.0,114290.0,0.00215039]
[1760140067803,0.17496402,114310.0,114290.0,0.00015039]
[1760140068042,0.27794592,114320.0,114290.0,0.00015039]
[1760140068259,0.17496284,114310.0,114290.0,0.00015039]
[1760140068422,0.27794592,114320.0,114290.0,0.00015039]
[1760140068726,0.17496329,114310.0,114290.0,0.00015039]
[1760140069092,0.27794592,114320.0,114290.0,0.04516039]
[1760140069293,0.13884895,114300.0,114290.0,0.00015039]
[1760140069833,0.26246421,114310.0,114290.0,0.00015039]
[1760140070041,0.17497812,114300.0,114290.0,0.00015039]
[1760140070273,0.26246421,114310.0,114290.0,0.00015039]
[1760140070834,0.08750055,114310.0,114290.0,0.00015039]
[1760140071756,0.26246482,114310.0,114290.0,0.00015039]
[1760140071956,0.17497812,114300.0,114290.0,0.00015039]
[1760140072274,0.26247867,114300.0,114290.0,0.00015039]
[1760140072858,0.19044537,114320.0,114290.0,0.00015039]
[1760140073059,0.08750055,114310.0,114290.0,0.00015039]
[1760140073243,0.17497812,114300.0,114290.0,0.00015039]
[1760140073840,0.26246369,114310.0,114290.0,0.00015039]
[1760140074049,0.17497812,114300.0,114290.0,0.00015039]
[1760140074442,0.26247867,114300.0,114290.0,0.00015039]
[1760140074647,0.08750055,114300.0,114290.0,0.00015039]
[1760140075369,0.19044537,114320.0,114290.0,0.00015039]
[1760140075370,0.00675,114320.0,114290.0,0.00015039]
[1760140075568,0.26919812,114320.0,114290.0,0.00015039]
[1760140075768,0.09425055,114320.0,114290.0,0.00015039]
[1760140075969,0.26247514,114310.0,114290.0,0.00015039]
[1760140076230,0.08750055,114310.0,114290.0,0.00015039]
[1760140076715,0.17496324,114310.0,114290.0,0.00015039]
[1760140076871,0.17497812,114300.0,114290.0,0.00015039]
[1760140077636,0.17497812,114300.0,114290.0,0.00115039]
[1760140078012,0.17497812,114300.0,114290.0,0.00015039]
[1760140078263,0.17496324,114310.0,114290.0,0.00015039]
[1760140078426,0.26246379,114310.0,114290.0,0.00015039]
[1760140078591,0.17497812,114300.0,114290.0,0.00015039]
[1760140079251,0.26246379,114310.0,114290.0,0.00015039]
[1760140079404,0.17497812,114300.0,114290.0,0.00015039]
[1760140079631,0.26246379,114310.0,114290.0,0.00015039]
[1760140079980,0.20818831,114300.0,114280.0,0.01037752]
[1760140080090,0.04033,114290.0,114270.0,0.04597]
[1760140080293,0.04033,114290.0,114270.0,0.08750055]
[1760140080761,0.22407463,114290.0,114270.0,0.02426433]
[1760140080993,0.04033,114290.0,114270.0,0.13347055]
[1760140081112,0.04033,114290.0,114270.0,0.13447055]
[1760140081311,0.04033,114290.0,114270.0,0.22931055]
[1760140081532,0.04033,114290.0,114280.0,0.04597]
[1760140081735,0.21532729,114290.0,114270.0,0.15686809]
[1760140081953,0.21532729,114290.0,114270.0,0.13447055]
[1760140081954,0.04033,114290.0,114270.0,0.13447055]
[1760140082587,0.04033,114290.0,114280.0,0.08750055]
[1760140082732,0.04033,114290.0,114280.0,0.13347055]
[1760140083139,0.04033,114290.0,114280.0,0.19507055]
[1760140083339,0.04033,114290.0,114280.0,0.22016372]
[1760140083558,0.04033,114290.0,114280.0,0.19507055]
[1760140083758,0.04033,114290.0,114280.0,0.19607055]
[1760140083959,0.04033,114290.0,114280.0,0.15956372]
[1760140084261,0.04033,114290.0,114280.0,0.04597]
[1760140084458,0.04033,114290.0,114280.0,0.02609317]
[1760140084660,0.03296,114300.0,114280.0,0.19507055]
[1760140084863,0.20987831,114320.0,114300.0,0.34]
[1760140084864,0.03493,114320.0,114300.0,0.34]
[1760140085071,0.03508088,114320.0,114300.0,0.38597]
[1760140085320,0.03296,114310.0,114300.0,0.41171867]
[1760140085521,0.20792282,114310.0,114300.0,0.02574867]
[1760140085728,0.26617096,114310.0,114280.0,0.001]
[1760140085929,0.04033,114290.0,114280.0,0.04697]
[1760140086130,0.04033,114290.0,114280.0,0.04597]
[1760140086413,0.21667096,114310.0,114280.0,0.04597]
[1760140086414,0.03296,114310.0,114280.0,0.31508728]
[1760140086653,0.03508088,114320.0,114300.0,0.38597]
[1760140086976,0.04965088,114320.0,114310.0,0.34]
[1760140087192,0.04965088,114320.0,114250.0,0.10531169]
[1760140087193,0.0087489,114300.0,114250.0,0.10531169]
[1760140087316,0.30731372,114290.0,114280.0,0.001]
[1760140087515,0.35681372,114290.0,114250.0,0.07410976]
[1760140087720,0.21982921,114280.0,114250.0,0.06957339]
[1760140087930,0.17502406,114270.0,114260.0,0.34]
[1760140088142,0.0495,114270.0,114250.0,0.05087]
[1760140088550,0.0495,114270.0,114250.0,0.06957184]
[1760140088901,0.0495,114270.0,114250.0,0.40972283]
[1760140089135,0.03607,114260.0,114250.0,0.36375283]
[1760140089285,0.03607,114260.0,114250.0,0.34505099]
[1760140089484,0.08557,114260.0,114250.0,0.00505099]
[1760140089702,0.26060938,114260.0,114250.0,0.00505099]
[1760140090471,0.34810993,114260.0,114250.0,0.00505099]
[1760140090672,0.34810993,114260.0,114220.0,0.04954]
[1760140090673,0.27307054,114260.0,114220.0,0.04954]
[1760140090874,0.03607,114230.0,114220.0,0.00015102]
[1760140091280,0.3481559,114230.0,114220.0,0.00015102]
[1760140091674,0.08557,114230.0,114220.0,0.00015102]
[1760140092496,0.03607,114250.0,114220.0,0.64151157]
[1760140092701,0.03607,114250.0,114230.0,0.57630055]
[1760140093110,0.03607,114250.0,114230.0,0.47704055]
[1760140093312,0.08557,114240.0,114230.0,0.34]
[1760140093516,0.26064002,114240.0,114230.0,0.34]
[1760140093722,0.26064002,114240.0,114220.0,0.34015102]
[1760140093941,0.03607,114250.0,114230.0,0.04954]
[1760140094100,0.03607,114250.0,114220.0,0.47719157]
[1760140094101,0.08557,114240.0,114220.0,0.47719157]
[1760140094668,0.03607,114240.0,114220.0,0.47719157]
[1760140094864,0.0495,114230.0,114220.0,0.00015102]